bitfinex-derivatives/quotes_BTCF0:USTF0_20240830
["timestamp","ask_amount","ask_price","bid_price","bid_amount"]
[1725010026699,0.083814,59647.0,59645.0,0.083816]
[1725010027201,0.18979603,59646.0,59645.0,0.083816]
[1725010027502,0.083814,59647.0,59645.0,0.084816]
[1725010027888,0.18512882,59646.0,59645.0,0.084816]
[1725010028794,0.18512882,59646.0,59645.0,0.085816]
[1725010029693,0.083813,59648.0,59645.0,0.085816]
[1725010029888,0.083813,59648.0,59646.0,0.083814]
[1725010030089,0.19187838,59647.0,59646.0,0.083814]
[1725010030594,0.19187838,59647.0,59645.0,0.002]
[1725010030794,0.27569138,59647.0,59645.0,0.01348958]
[1725010030996,0.083815,59646.0,59645.0,0.002]
[1725010031191,0.35480255,59646.0,59645.0,0.002]
[1725010031391,0.35480255,59646.0,59645.0,0.001]
[1725010032006,0.083818,59644.0,59643.0,0.083819]
[1725010032394,0.35962731,59644.0,59643.0,0.09521775]
[1725010032594,0.35962731,59644.0,59643.0,0.01139875]
[1725010032893,0.08382,59643.0,59642.0,0.083819]
[1725010033302,0.26334236,59643.0,59642.0,0.083819]
[1725010034199,0.26334236,59643.0,59642.0,0.084819]
[1725010035308,0.26334236,59643.0,59642.0,0.085819]
[1725010036511,0.17952236,59643.0,59642.0,0.085819]
[1725010036803,0.083815,59646.0,59645.0,0.083816]
[1725010037002,0.18007747,59651.0,59646.0,0.083813]
[1725010037003,0.083813,59648.0,59646.0,0.083813]
[1725010037312,0.18007747,59647.0,59646.0,0.083813]
[1725010038408,0.08381,59650.0,59648.0,0.083812]
[1725010038604,0.17498609,59649.0,59648.0,0.083812]
[1725010038799,0.12460668,59652.0,59645.0,0.0672]
[1725010039004,0.0039,59658.0,59655.0,0.083802]
[1725010039005,0.083802,59656.0,59655.0,0.083802]
[1725010039401,0.19049255,59656.0,59655.0,0.083802]
[1725010039704,0.21389968,59662.0,59656.0,0.0838]
[1725010039705,0.083798,59658.0,59656.0,0.0838]
[1725010040109,0.17919244,59657.0,59656.0,0.0838]
[1725010040703,0.26299144,59657.0,59656.0,0.21516]
[1725010041203,0.083799,59657.0,59656.0,0.21516]
[1725010041505,0.14249968,59662.0,59657.0,0.083798]
[1725010041705,0.083798,59659.0,59657.0,0.083798]
[1725010042311,0.26175595,59658.0,59657.0,0.083798]
[1725010042711,0.17795795,59659.0,59657.0,0.001]
[1725010042912,0.17795795,59659.0,59658.0,0.083798]
[1725010043112,0.083797,59659.0,59658.0,0.083798]
[1725010043304,0.2584888,59659.0,59658.0,0.083798]
[1725010044414,0.2584888,59659.0,59658.0,0.084798]
[1725010044806,0.1746918,59659.0,59658.0,0.084798]
[1725010045006,0.1746918,59659.0,59658.0,0.445598]
[1725010045202,0.0664,59663.0,59661.0,0.083792]
[1725010045203,0.083792,59662.0,59661.0,0.083792]
[1725010045410,0.26867284,59662.0,59661.0,0.083792]
[1725010045609,0.083792,59662.0,59661.0,0.083792]
[1725010046007,0.17769652,59662.0,59661.0,0.083792]
[1725010046313,0.083784,59669.0,59668.0,0.083782]
[1725010046506,0.083784,59669.0,59668.0,0.3608]
[1725010046704,0.26148052,59669.0,59668.0,0.3608]
[1725010047011,0.083784,59669.0,59668.0,0.3608]
[1725010047217,0.34345835,59669.0,59668.0,0.3608]
[1725010047914,0.34345835,59669.0,59668.0,0.3618]
[1725010048118,0.25967435,59669.0,59668.0,0.3618]
[1725010048718,0.17589035,59669.0,59668.0,0.445584]
[1725010049117,0.1816973,59675.0,59668.0,0.446584]
[1725010049413,0.083783,59669.0,59668.0,0.446584]
[1725010049613,0.083783,59669.0,59668.0,0.3628]
[1725010049913,0.26954479,59669.0,59668.0,0.3628]
[1725010050132,0.26954479,59669.0,59668.0,0.37397044]
[1725010053518,0.26954479,59669.0,59668.0,0.45775444]
[1725010057109,0.18576179,59669.0,59668.0,0.45775444]
[1725010057516,0.26954479,59669.0,59668.0,0.37397044]
[1725010057711,0.083783,59669.0,59668.0,0.37397044]
[1725010057920,0.2674755,59669.0,59668.0,0.37397044]
[1725010059108,0.308505,59669.0,59668.0,0.37397044]
[1725010059710,0.308505,59669.0,59668.0,0.45775444]
[1725010059910,0.2674755,59669.0,59668.0,0.45775444]
[1725010060624,0.30850441,59669.0,59668.0,0.45775444]
[1725010060810,0.2674755,59669.0,59668.0,0.45775444]
[1725010061018,0.30850322,59669.0,59668.0,0.45775444]
[1725010061217,0.2674755,59669.0,59668.0,0.45775444]
[1725010061419,0.27418197,59669.0,59668.0,0.45775444]
[1725010063614,0.2674755,59669.0,59668.0,0.45775444]
[1725010064217,0.27418189,59669.0,59668.0,0.37397044]
[1725010065626,0.27418189,59669.0,59668.0,0.45775444]
[1725010066624,0.27418189,59669.0,59668.0,0.37397044]
[1725010066821,0.35796489,59669.0,59668.0,0.37397044]
[1725010067030,0.80254789,59669.0,59668.0,0.002]
[1725010067321,0.71876489,59669.0,59668.0,0.002]
[1725010068624,0.35796489,59669.0,59668.0,0.002]
[1725010069326,0.44174789,59669.0,59668.0,0.002]
[1725010070015,0.3512585,59669.0,59668.0,0.002]
[1725010070218,0.4350415,59669.0,59668.0,0.002]
[1725010070715,0.44174906,59669.0,59668.0,0.002]
[1725010071522,0.48278273,59669.0,59668.0,0.002]
[1725010071922,0.44174906,59669.0,59668.0,0.002]
[1725010072324,0.48278373,59669.0,59668.0,0.002]
[1725010073528,0.47607617,59669.0,59668.0,0.002]
[1725010073733,0.47607643,59669.0,59668.0,0.002]
[1725010074333,0.29707705,59669.0,59668.0,0.002]
[1725010074526,0.25604212,59669.0,59668.0,0.002]
[1725010074727,0.38086004,59669.0,59668.0,0.002]
[1725010075132,0.33982512,59669.0,59668.0,0.002]
[1725010076934,0.37415224,59669.0,59668.0,0.002]
[1725010077134,1.47691224,59669.0,59668.0,0.002]
[1725010077527,1.48361992,59669.0,59668.0,0.002]
[1725010078427,1.4425851,59669.0,59668.0,0.002]
[1725010078928,1.45368266,59669.0,59668.0,0.002]
[1725010080235,0.85368266,59669.0,59668.0,0.002]
[1725010080430,0.93746566,59669.0,59668.0,0.002]
[1725010080636,0.9123769,59669.0,59668.0,0.002]
[1725010081037,0.85368266,59669.0,59668.0,0.002]
[1725010081235,0.91237701,59669.0,59668.0,0.002]
[1725010081538,1.51237701,59669.0,59668.0,0.002]
[1725010082338,1.59616001,59669.0,59668.0,0.002]
[1725010082731,1.58945233,59669.0,59668.0,0.002]
[1725010083236,1.59616026,59669.0,59668.0,0.002]
[1725010084342,0.25137,59664.0,59663.0,0.00025143]
[1725010084543,0.251415,59653.0,59652.0,0.0039]
[1725010084736,0.251415,59653.0,59642.0,0.15442]
[1725010084737,0.083816,59645.0,59642.0,0.15442]
[1725010084938,0.09052393,59645.0,59644.0,0.07916369]
[1725010085132,0.2847189,59645.0,59644.0,0.01136369]
[1725010085335,0.083819,59643.0,59642.0,0.0706]
[1725010085645,0.27801397,59643.0,59642.0,0.0706]
[1725010085951,0.36183297,59643.0,59642.0,0.0706]
[1725010086142,0.36183297,59643.0,59637.0,0.00025143]
[1725010086143,0.16765,59639.0,59637.0,0.00025143]
[1725010086537,0.35282964,59639.0,59637.0,0.00025143]
[1725010086938,0.26900464,59639.0,59637.0,0.00025143]
[1725010087242,0.18517964,59639.0,59638.0,0.45621563]
[1725010087646,0.083821,59642.0,59641.0,0.083822]
[1725010088141,0.26883994,59642.0,59641.0,0.083822]
[1725010088952,0.27083994,59642.0,59641.0,0.083822]
[1725010090344,0.27183994,59642.0,59641.0,0.083822]
[1725010091544,0.18801894,59642.0,59641.0,0.083822]
[1725010097951,0.27183894,59642.0,59641.0,0.083822]
[1725010099647,0.18801894,59642.0,59641.0,0.083822]
[1725010100655,0.27183894,59642.0,59641.0,0.083822]
[1725010103657,0.03502151,59642.0,59641.0,0.083822]
[1725010103859,0.22521508,59642.0,59641.0,0.083822]
[1725010109263,0.083825,59639.0,59638.0,0.37238963]
[1725010109460,0.083825,59639.0,59638.0,0.01158963]
[1725010109461,0.16765,59639.0,59638.0,0.01158963]
[1725010109665,0.167652,59638.0,59637.0,0.00025143]
[1725010110065,0.34368838,59638.0,59637.0,0.00025143]
[1725010110261,0.34368838,59638.0,59637.0,0.01166439]
[1725010110461,0.34368838,59638.0,59637.0,0.00025143]
[1725010112566,0.34368838,59638.0,59637.0,0.01153265]
[1725010115160,0.54888838,59638.0,59637.0,0.01153265]
[1725010116973,0.63271438,59638.0,59637.0,0.01153265]
[1725010117265,0.64271438,59638.0,59637.0,0.01153265]
[1725010119075,1.01022485,59638.0,59637.0,0.01153265]
[1725010120773,1.08734038,59638.0,59637.0,0.00025143]
[1725010121065,0.71654038,59638.0,59637.0,0.00025143]
[1725010121262,0.7232514,59638.0,59637.0,0.00025143]
[1725010121866,0.7332514,59638.0,59637.0,0.00025143]
[1725010123674,0.72654038,59638.0,59637.0,0.00025143]
[1725010123972,0.73325142,59638.0,59637.0,0.00025143]
[1725010124473,1.23629142,59638.0,59637.0,0.00025143]
[1725010124667,1.83629142,59638.0,59637.0,0.00025143]
[1725010125274,1.89501414,59638.0,59637.0,0.00025143]
[1725010125673,1.83629142,59638.0,59637.0,0.00025143]
[1725010126675,1.23629142,59638.0,59637.0,0.00025143]
[1725010126981,1.22629142,59638.0,59637.0,0.00025143]
[1725010127774,0.72325142,59638.0,59637.0,0.00025143]
[1725010128274,0.77325142,59638.0,59637.0,0.00025143]
[1725010130071,0.76654038,59638.0,59637.0,0.00025143]
[1725010130580,0.77325138,59638.0,59637.0,0.00025143]
[1725010133484,0.76654038,59638.0,59637.0,0.00025143]
[1725010134485,1.13405151,59638.0,59637.0,0.00025143]
[1725010135478,1.10894777,59638.0,59637.0,0.00025143]
[1725010136786,1.10223664,59638.0,59637.0,0.00025143]
[1725010137486,1.1089477,59638.0,59637.0,0.00025143]
[1725010140380,1.10894777,59638.0,59637.0,0.00025143]
[1725010142579,1.18606264,59638.0,59637.0,0.00025143]
[1725010143075,1.69581379,59638.0,59637.0,0.00025143]
[1725010146185,1.19277379,59638.0,59637.0,0.00025143]
[1725010147782,1.19277379,59638.0,59637.0,4.3e-07]
[1725010148081,0.335376,59625.0,59624.0,1e-06]
[1725010148274,1.11368715,59625.0,59624.0,1e-06]
[1725010148474,2.46823167,59625.0,59624.0,1e-06]
[1725010149583,0.251553,59620.0,59619.0,0.00025143]
[1725010149885,0.82428844,59620.0,59619.0,0.00025143]
[1725010150089,0.8630107,59620.0,59619.0,0.00025143]
[1725010150386,0.80428844,59620.0,59619.0,0.00025143]
[1725010151582,0.80328844,59620.0,59619.0,0.00025143]
[1725010152380,0.79657729,59620.0,59619.0,0.00025143]
[1725010152586,0.81129035,59620.0,59619.0,0.00025143]
[1725010152779,0.82129035,59620.0,59619.0,0.00025143]
[1725010154892,0.90514135,59620.0,59619.0,4.3e-07]
[1725010155388,0.89842829,59620.0,59619.0,4.3e-07]
[1725010155785,1.40162829,59620.0,59619.0,4.3e-07]
[1725010155986,2.00162829,59620.0,59619.0,4.3e-07]
[1725010156392,2.00834201,59620.0,59619.0,4.3e-07]
[1725010156694,2.06708718,59620.0,59619.0,4.3e-07]
[1725010158093,2.15093818,59620.0,59619.0,4.3e-07]
[1725010158792,2.14422446,59620.0,59619.0,4.3e-07]
[1725010158995,2.15093925,59620.0,59619.0,4.3e-07]
[1725010162286,2.14422446,59620.0,59619.0,4.3e-07]
[1725010162794,2.15093914,59620.0,59619.0,4.3e-07]
[1725010165797,2.09219397,59620.0,59619.0,4.3e-07]
[1725010165996,2.15094927,59620.0,59619.0,4.3e-07]
[1725010166688,2.09219397,59620.0,59619.0,4.3e-07]
[1725010167086,2.15094872,59620.0,59619.0,4.3e-07]
[1725010169187,2.51174872,59620.0,59619.0,4.3e-07]
[1725010169393,2.50174872,59620.0,59619.0,4.3e-07]
[1725010170996,2.44299397,59620.0,59619.0,4.3e-07]
[1725010171901,2.43627929,59620.0,59619.0,4.3e-07]
[1725010172403,2.44299388,59620.0,59619.0,4.3e-07]
[1725010172796,2.50174757,59620.0,59619.0,4.3e-07]
[1725010173097,2.44299388,59620.0,59619.0,4.3e-07]
[1725010174092,2.50174526,59620.0,59619.0,4.3e-07]
[1725010174292,2.44299388,59620.0,59619.0,4.3e-07]
[1725010175200,2.43627929,59620.0,59619.0,4.3e-07]
[1725010175402,2.44299399,59620.0,59619.0,4.3e-07]
[1725010176800,2.50174867,59620.0,59619.0,4.3e-07]
[1725010177300,2.50174743,59620.0,59619.0,4.3e-07]
[1725010177496,2.50174847,59620.0,59619.0,4.3e-07]
[1725010177699,2.50174903,59620.0,59619.0,4.3e-07]
[1725010178203,2.44299399,59620.0,59619.0,4.3e-07]
[1725010178510,2.43627929,59620.0,59619.0,4.3e-07]
[1725010178999,2.44299393,59620.0,59619.0,4.3e-07]
[1725010179396,2.50174796,59620.0,59619.0,4.3e-07]
[1725010179604,2.44299393,59620.0,59619.0,4.3e-07]
[1725010180103,2.36014293,59620.0,59619.0,4.3e-07]
[1725010180500,2.50274884,59620.0,59619.0,4.3e-07]
[1725010180697,0.335444,59613.0,59612.0,4.3e-07]
[1725010180898,0.70295864,59613.0,59612.0,4.3e-07]
[1725010181205,1.9880877,59613.0,59612.0,4.3e-07]
[1725010181792,1.9880877,59613.0,59606.0,0.0699]
[1725010181793,0.333472,59608.0,59607.0,8.6e-07]
[1725010182100,0.33548,59607.0,59606.0,8.6e-07]
[1725010182311,0.25164,59600.0,59592.0,0.0743]
[1725010182497,0.61915538,59600.0,59592.0,0.0704]
[1725010182699,0.80182554,59600.0,59592.0,0.0704]
[1725010183100,0.80182554,59600.0,59599.0,0.08299757]
[1725010183303,0.79482554,59600.0,59599.0,0.08299757]
[1725010183904,0.79182554,59600.0,59599.0,0.08299757]
[1725010184503,0.79282554,59600.0,59599.0,0.09699757]
[1725010185006,0.79382554,59600.0,59599.0,0.10899757]
[1725010185903,0.62606554,59600.0,59595.0,0.0691]
[1725010186199,0.62606554,59600.0,59585.0,0.0039]
[1725010186200,0.083899,59586.0,59585.0,0.0039]
[1725010186402,0.083912,59577.0,59576.0,0.3608]
[1725010186602,0.09062738,59577.0,59576.0,0.3608]
[1725010186796,0.27994454,59577.0,59576.0,0.86436]
[1725010187203,0.26294454,59577.0,59576.0,0.86436]
[1725010187798,0.26394454,59577.0,59576.0,1.48999282]
[1725010187994,0.26394454,59577.0,59576.0,0.89299282]
[1725010187995,0.26494454,59577.0,59576.0,0.89299282]
[1725010188303,0.26494454,59577.0,59576.0,0.38943282]
[1725010188498,0.25822916,59577.0,59576.0,0.38943282]
[1725010188803,0.2649464,59577.0,59576.0,0.89299282]
[1725010189210,0.2649464,59577.0,59576.0,1.57690582]
[1725010189211,0.1980344,59577.0,59576.0,1.57690582]
[1725010189394,0.1980344,59577.0,59576.0,1.66081882]
[1725010189902,0.1980344,59577.0,59576.0,1.57690582]
[1725010190206,0.1980344,59577.0,59576.0,1.62695875]
[1725010190508,0.1980344,59577.0,59576.0,1.57690582]
[1725010191510,0.1980344,59577.0,59576.0,1.55990582]
[1725010192013,0.19131716,59577.0,59576.0,1.55990582]
[1725010192302,0.19803383,59577.0,59576.0,1.55990582]
[1725010193707,0.28194583,59577.0,59576.0,1.55990582]
[1725010194110,0.28194583,59577.0,59576.0,0.95990582]
[1725010194703,0.28094583,59577.0,59576.0,0.95990582]
[1725010194904,0.36585783,59577.0,59576.0,0.01163282]
[1725010195109,0.083915,59575.0,59574.0,0.1835]
[1725010195420,0.27047147,59575.0,59574.0,0.1835]
[1725010195608,0.27718814,59575.0,59574.0,0.1835]
[1725010196209,0.27818814,59575.0,59574.0,0.1835]
[1725010196410,0.27818814,59575.0,59574.0,0.267416]
[1725010196606,0.27818814,59575.0,59574.0,0.27688597]
[1725010197116,0.44601814,59575.0,59574.0,0.05876997]
[1725010197623,0.36210314,59575.0,59574.0,0.05876997]
[1725010198420,0.36310314,59575.0,59574.0,0.05876997]
[1725010198722,0.36310398,59575.0,59574.0,0.05876997]
[1725010199913,0.36310398,59575.0,59574.0,0.00946997]
[1725010200121,0.167838,59572.0,59571.0,0.36105165]
[1725010200323,0.17455551,59572.0,59571.0,0.36105165]
[1725010200624,0.35433209,59572.0,59571.0,0.36105165]
[1725010201309,0.35533209,59572.0,59571.0,0.37016858]
[1725010202914,0.35633209,59572.0,59571.0,0.37016858]
[1725010204020,0.35633221,59572.0,59571.0,0.37016858]
[1725010204222,0.44025121,59572.0,59571.0,0.37016858]
[1725010204914,0.43925121,59572.0,59571.0,0.37016858]
[1725010205111,0.44025121,59572.0,59571.0,0.36105165]
[1725010205316,0.45025121,59572.0,59571.0,0.36105165]
[1725010205524,0.81105121,59572.0,59571.0,0.00025165]
[1725010205822,0.81005121,59572.0,59571.0,0.00025165]
[1725010206227,0.81105121,59572.0,59571.0,0.00025165]
[1725010206533,0.81105121,59572.0,59559.0,0.087837]
[1725010206534,0.167872,59560.0,59559.0,0.0039]
[1725010206820,0.08395,59551.0,59550.0,0.08395]
[1725010207129,0.083946,59553.0,59547.0,0.3608]
[1725010207427,0.083953,59548.0,59547.0,0.37017486]
[1725010207924,0.27008714,59548.0,59547.0,0.87397486]
[1725010208126,0.27008714,59548.0,59547.0,0.37017486]
[1725010208520,0.27008714,59548.0,59547.0,0.34717486]
[1725010208826,0.27680717,59548.0,59547.0,0.34717486]
[1725010209821,0.27680717,59548.0,59547.0,0.43112886]
[1725010210023,0.19385417,59548.0,59547.0,1.61888286]
[1725010210220,0.1768228,59548.0,59547.0,1.61888286]
[1725010211523,0.17010277,59548.0,59547.0,1.61888286]
[1725010211828,0.17682243,59548.0,59547.0,1.61888286]
[1725010212028,0.17682243,59548.0,59547.0,1.53492886]
[1725010213320,0.17682243,59548.0,59547.0,1.55792886]
[1725010213817,0.17010277,59548.0,59547.0,0.95792886]
[1725010214023,0.17010277,59548.0,59547.0,1.55792886]
[1725010214218,0.17682253,59548.0,59547.0,1.55792886]
[1725010216631,0.17682253,59548.0,59547.0,0.95792886]
[1725010217623,0.26077553,59548.0,59547.0,0.45412886]
[1725010219127,0.41542853,59548.0,59547.0,0.37017486]
[1725010219332,0.41542853,59548.0,59547.0,0.00937486]
[1725010219632,0.083957,59545.0,59544.0,0.08412634]
[1725010219831,7.6e-07,59545.0,59544.0,0.08412634]
[1725010220023,0.0039,59571.0,59544.0,0.87408127]
[1725010220225,0.0646,59573.0,59563.0,0.3608]
[1725010220429,0.176221,59570.0,59569.0,0.083923]
[1725010220627,0.0067184,59570.0,59564.0,0.083929]
[1725010220829,0.176221,59572.0,59563.0,0.3608]
[1725010220830,0.0906424,59569.0,59563.0,0.3608]
[1725010221030,0.0067184,59568.0,59567.0,0.083925]
[1725010221331,0.19413862,59568.0,59567.0,0.083925]
[1725010223632,0.19413851,59568.0,59567.0,0.083925]
[1725010224623,0.19413851,59568.0,59567.0,0.0931377]
[1725010226739,0.18742022,59568.0,59567.0,0.0931377]
[1725010227130,0.00671829,59568.0,59567.0,0.0931377]
[1725010227538,0.1839849,59568.0,59567.0,0.0931377]
[1725010227931,0.1839849,59568.0,59567.0,0.1770637]
[1725010228239,0.0916379,59568.0,59567.0,1.414562]
[1725010228448,0.0916379,59568.0,59567.0,1.3646297]
[1725010228631,9e-07,59568.0,59567.0,1.3646297]
[1725010228833,9e-07,59568.0,59567.0,1.4312061]
[1725010229032,9e-07,59568.0,59567.0,1.3646297]
[1725010230839,9e-07,59568.0,59567.0,1.41457532]
[1725010231335,9e-07,59568.0,59567.0,2.0862297]
[1725010233036,9e-07,59568.0,59567.0,1.3183777]
[1725010233233,9e-07,59568.0,59567.0,1.4574177]
[1725010233828,9e-07,59568.0,59567.0,0.9537777]
[1725010236033,0.0839259,59568.0,59567.0,0.9537777]
[1725010237127,0.0839259,59568.0,59567.0,0.8147377]
[1725010237327,0.0839259,59568.0,59567.0,0.9537777]
[1725010238336,0.09064343,59568.0,59567.0,0.9537777]
[1725010239728,0.0839259,59568.0,59567.0,0.9537777]
[1725010240242,0.09064339,59568.0,59567.0,0.9537777]
[1725010241034,0.00671839,59568.0,59567.0,1.0377037]
[1725010241237,0.00671839,59568.0,59567.0,0.9537777]
[1725010241741,0.09064339,59568.0,59567.0,0.9537777]
[1725010244538,0.17456839,59568.0,59567.0,0.1482527]
[1725010245042,0.17456839,59568.0,59567.0,0.0092127]
[1725010245250,0.083927,59566.0,59565.0,0.083928]
[1725010245443,0.17457149,59566.0,59565.0,0.083928]
[1725010245745,0.35586713,59566.0,59565.0,0.083928]
[1725010246051,0.083932,59563.0,59562.0,0.45391247]
[1725010246344,0.27826654,59563.0,59562.0,0.45391247]
[1725010246844,0.28498403,59563.0,59562.0,0.45391247]
[1725010247948,0.28598403,59563.0,59562.0,0.45391247]
[1725010248349,0.20205203,59563.0,59562.0,1.09147109]
[1725010248545,0.20205203,59563.0,59562.0,1.64152547]
[1725010249043,0.20205203,59563.0,59562.0,1.79215643]
[1725010249238,0.19533454,59563.0,59562.0,1.72545847]
[1725010249645,0.20205185,59563.0,59562.0,1.72545847]
[1725010251338,0.19533454,59563.0,59562.0,1.72545847]
[1725010251838,0.20205182,59563.0,59562.0,1.72545847]
[1725010252839,0.19533454,59563.0,59562.0,1.72545847]
[1725010253043,0.20205176,59563.0,59562.0,1.72545847]
[1725010254248,0.20205176,59563.0,59562.0,1.64152547]
[1725010254548,0.20205176,59563.0,59562.0,1.72545847]
[1725010259159,0.15489176,59563.0,59562.0,1.72545847]
[1725010261654,0.09146454,59563.0,59562.0,1.72545847]
[1725010261859,0.09818178,59563.0,59562.0,1.72545847]
[1725010263457,0.07618178,59563.0,59562.0,1.72545847]
[1725010265957,0.06321068,59571.0,59569.0,0.167846]
[1725010266260,0.06321068,59571.0,59570.0,0.528644]
[1725010266453,0.06992758,59571.0,59570.0,0.528644]
[1725010266750,0.25608746,59571.0,59570.0,0.528644]
[1725010267160,0.25708746,59571.0,59570.0,0.528644]
[1725010267961,0.25037056,59571.0,59570.0,0.528644]
[1725010268161,0.22872752,59571.0,59570.0,0.528644]
[1725010269069,0.0039,59580.0,59579.0,0.167818]
[1725010269260,0.3653,59599.0,59587.0,0.083898]
[1725010269261,0.131,59588.0,59587.0,0.083898]
[1725010269765,0.30967844,59588.0,59587.0,0.083898]
[1725010269961,0.131,59588.0,59587.0,0.083898]
[1725010270154,0.30967844,59588.0,59587.0,0.083898]
[1725010271756,0.32367844,59588.0,59587.0,0.083898]
[1725010273064,0.32367844,59588.0,59587.0,0.09302509]
[1725010273257,0.32367844,59588.0,59582.0,0.00025186]
[1725010273258,0.083903,59583.0,59582.0,0.00025186]
[1725010273459,0.083913,59576.0,59575.0,0.0039]
[1725010273655,0.083911,59578.0,59572.0,0.3608]
[1725010273656,0.083918,59573.0,59572.0,0.3608]
[1725010274054,0.27499315,59573.0,59572.0,0.3608]
[1725010275264,0.19107515,59573.0,59572.0,0.36985863]
[1725010275963,0.19107515,59573.0,59572.0,0.45377763]
[1725010276463,0.19507515,59573.0,59572.0,0.45377763]
[1725010276657,0.26337515,59573.0,59572.0,0.45377763]
[1725010278966,0.27009187,59573.0,59572.0,0.5204989]
[1725010279167,0.27009187,59573.0,59572.0,0.45377763]
[1725010281168,0.27009187,59573.0,59572.0,0.5204989]
[1725010282070,0.27009187,59573.0,59572.0,0.45377763]
[1725010285069,0.09991992,59573.0,59572.0,0.45377763]
[1725010287478,0.09992006,59573.0,59572.0,0.45377763]
[1725010289972,0.18383806,59573.0,59572.0,0.45377763]
[1725010290170,0.18383806,59573.0,59572.0,0.5204989]
[1725010290374,0.1771212,59573.0,59572.0,0.45377763]
[1725010290573,0.1771212,59573.0,59572.0,0.5204989]
[1725010290768,0.1771212,59573.0,59572.0,0.36985863]
[1725010291164,0.18383813,59573.0,59572.0,0.36985863]
[1725010291972,0.18383813,59573.0,59572.0,0.50837863]
[1725010292171,1.06072013,59573.0,59569.0,0.06678073]
[1725010292372,0.083923,59569.0,59560.0,0.06680582]
[1725010292573,0.167872,59560.0,59557.0,0.06680582]
[1725010292871,0.167872,59560.0,59543.0,0.46087738]
[1725010292872,0.083951,59549.0,59546.0,0.06685354]
[1725010293081,0.083951,59549.0,59545.0,0.06685354]
[1725010293082,0.083956,59546.0,59545.0,0.06685354]
[1725010293275,0.083956,59546.0,59543.0,0.3701809]
[1725010293276,0.083958,59544.0,59543.0,0.3701809]
[1725010293482,0.09067493,59544.0,59543.0,0.3701809]
[1725010293781,0.27359909,59544.0,59543.0,0.0093809]
[1725010293970,0.083963,59541.0,59540.0,0.00016934]
[1725010294367,0.083963,59541.0,59540.0,0.00960391]
[1725010294368,0.35756709,59541.0,59540.0,0.00960391]
[1725010294572,0.35756709,59541.0,59540.0,0.00016934]
[1725010295184,0.36428739,59541.0,59540.0,0.00016934]
[1725010295891,0.28032439,59541.0,59540.0,0.00016934]
[1725010296187,0.28132439,59541.0,59540.0,0.00016934]
[1725010297473,0.28132439,59541.0,59540.0,0.00936242]
[1725010307585,0.36528739,59541.0,59540.0,0.00936242]
[1725010308085,0.28132439,59541.0,59540.0,0.00936242]
[1725010310091,0.27460409,59541.0,59540.0,0.00936242]
[1725010310291,0.28132469,59541.0,59540.0,0.00936242]
[1725010310893,0.28132469,59541.0,59540.0,0.09332642]
[1725010312906,0.19736169,59541.0,59540.0,0.09332642]
[1725010313096,0.19064109,59541.0,59540.0,0.09332642]
[1725010313288,0.19736153,59541.0,59540.0,0.09332642]
[1725010315685,0.19736153,59541.0,59540.0,0.00936242]
[1725010315892,0.36528753,59541.0,59540.0,0.00936242]
[1725010316294,0.35856709,59541.0,59540.0,0.00936242]
[1725010317089,0.36528822,59541.0,59540.0,0.00936242]
[1725010319391,0.35856709,59541.0,59540.0,0.00936242]
[1725010319800,0.36856709,59541.0,59540.0,0.00016934]
[1725010319991,0.37528824,59541.0,59540.0,0.00016934]
[1725010320391,0.36528824,59541.0,59540.0,0.00016934]
[1725010321095,0.37528824,59541.0,59540.0,0.00016934]
[1725010321299,0.44925124,59541.0,59540.0,0.00016934]
[1725010321593,0.45925124,59541.0,59540.0,0.00016934]
[1725010321797,0.083973,59534.0,59530.0,0.46062]
[1725010322002,0.444777,59531.0,59530.0,0.223298]
[1725010322201,0.083977,59531.0,59530.0,0.29015154]
[1725010322508,0.083977,59531.0,59530.0,0.23236727]
[1725010322509,0.27358799,59531.0,59530.0,0.23236727]
[1725010323099,0.18961099,59531.0,59530.0,0.23236727]
[1725010323408,0.18961099,59531.0,59530.0,0.59316727]
[1725010323589,0.00672115,59531.0,59530.0,1.90906166]
[1725010323890,0.00025186,59536.0,59535.0,0.083971]
[1725010324099,0.00025186,59536.0,59535.0,0.444771]
[1725010324292,0.18552171,59536.0,59535.0,0.444771]
[1725010324490,0.19224236,59536.0,59535.0,0.444771]
[1725010324690,0.19224236,59536.0,59535.0,0.52838461]
[1725010324888,0.19224236,59536.0,59535.0,0.6563268]
[1725010325298,0.18552171,59536.0,59535.0,0.6563268]
[1725010325503,0.19224222,59536.0,59535.0,0.6563268]
[1725010325705,0.19224222,59536.0,59535.0,0.52838461]
[1725010326002,0.19224222,59536.0,59535.0,0.444771]
[1725010326500,0.19224222,59536.0,59535.0,0.584091]
[1725010327396,0.19324222,59536.0,59535.0,0.584091]
[1725010331497,0.18652171,59536.0,59535.0,0.584091]
[1725010332808,0.1932423,59536.0,59535.0,0.584091]
[1725010335505,0.18652171,59536.0,59535.0,0.584091]
[1725010338212,0.18652171,59536.0,59535.0,0.668062]
[1725010339516,0.19324215,59536.0,59535.0,0.668062]
[1725010341198,0.08512753,59536.0,59535.0,0.668062]
[1725010341399,0.0039,59545.0,59544.0,0.083958]
[1725010341599,0.149246,59553.0,59549.0,0.083951]
[1725010341808,0.083949,59551.0,59549.0,0.083951]
[1725010342011,0.3608,59555.0,59554.0,0.083944]
[1725010342405,0.55513689,59555.0,59554.0,0.083944]
[1725010342714,0.19433689,59555.0,59554.0,0.444744]
[1725010343010,0.00025186,59560.0,59559.0,0.083937]
[1725010343198,0.00025186,59560.0,59559.0,0.444737]
[1725010343406,0.19423072,59560.0,59559.0,0.444737]
[1725010345903,0.19423072,59560.0,59559.0,0.583297]
[1725010346103,0.19423072,59560.0,59559.0,0.444737]
[1725010346306,0.19423072,59560.0,59559.0,0.49936]
[1725010346506,0.19423072,59560.0,59559.0,0.3608]
[1725010346714,0.70691072,59560.0,59559.0,0.3608]
[1725010347505,0.79084672,59560.0,59559.0,0.3608]
[1725010348114,0.70691072,59560.0,59556.0,0.13856]
[1725010348316,0.08394,59557.0,59556.0,0.13856]
[1725010348616,0.26709009,59557.0,59556.0,0.13856]
[1725010349505,0.083942,59556.0,59555.0,0.3608]
[1725010349914,0.083943,59555.0,59554.0,0.00743743]
[1725010350219,0.083943,59555.0,59549.0,0.00415186]
[1725010350220,0.08395,59550.0,59549.0,0.00415186]
[1725010350418,0.08395,59550.0,59549.0,0.13881186]
[1725010350618,0.26629582,59550.0,59549.0,0.13881186]
[1725010351624,0.27301543,59550.0,59549.0,0.14633964]
[1725010352405,0.27301543,59550.0,59549.0,0.00777964]
[1725010352917,0.35696543,59550.0,59549.0,0.00777964]
[1725010353708,0.71104582,59550.0,59549.0,0.00777964]
[1725010354115,1.21484582,59550.0,59549.0,0.00777964]
[1725010354309,0.16792,59543.0,59542.0,0.0039]